bitfinex/quotes_BTCUSD_20210402
["timestamp","ask_amount","ask_price","bid_price","bid_amount"]
[1617402651779,6.25793488,58851.0,58850.0,4.99177143]
[1617402651975,7.49029517,58851.0,58850.0,4.65172943]
[1617402652178,8.89541257,58851.0,58850.0,4.10313843]
[1617402652414,8.89541257,58851.0,58826.0,0.05]
[1617402652415,11.262491,58851.0,58826.0,0.05]
[1617402652614,0.114394,58805.0,58803.0,0.945]
[1617402652817,0.453404,58805.0,58804.0,1.372035]
[1617402653014,0.453404,58805.0,58804.0,0.985255]
[1617402653212,0.748404,58805.0,58804.0,0.985255]
[1617402653610,0.743404,58805.0,58804.0,0.975255]
[1617402653815,0.094394,58805.0,58804.0,15.043255]
[1617402654015,0.094394,58805.0,58804.0,15.430275]
[1617402654213,0.094394,58805.0,58804.0,16.220275]
[1617402654861,0.094394,58805.0,58804.0,16.388275]
[1617402655258,0.0941936,58805.0,58804.0,16.388275]
[1617402655664,0.0941936,58805.0,58804.0,16.643308]
[1617402655862,0.0941936,58805.0,58804.0,17.04325174]
[1617402656060,0.0941936,58805.0,58804.0,3.13325174]
[1617402656262,0.0941936,58805.0,58804.0,2.733308]
[1617402656861,0.0941936,58805.0,58804.0,16.633308]
[1617402657260,0.0941936,58805.0,58804.0,17.03325174]
[1617402659263,0.0941936,58805.0,58804.0,3.13325174]
[1617402659464,0.0941936,58805.0,58804.0,2.733308]
[1617402659862,0.0941936,58805.0,58804.0,7.753308]
[1617402660279,0.0941936,58805.0,58804.0,2.733308]
[1617402660884,0.0941936,58805.0,58804.0,10.91325174]
[1617402661284,0.0941936,58805.0,58804.0,10.513308]
[1617402661482,0.0941936,58805.0,58804.0,10.91325174]
[1617402661681,0.0941936,58805.0,58804.0,10.513308]
[1617402661880,0.0941936,58805.0,58804.0,14.553308]
[1617402662083,0.0941936,58805.0,58804.0,14.95325174]
[1617402662682,0.0941936,58805.0,58804.0,15.00325174]
[1617402662905,0.0941936,58805.0,58804.0,16.85325174]
[1617402663109,0.0941936,58805.0,58804.0,16.85301174]
[1617402663514,0.08977646,58822.0,58821.0,0.159]
[1617402663711,0.08977646,58822.0,58821.0,0.463952]
[1617402664106,2.12107698,58828.0,58821.0,0.463952]
[1617402664305,2.12107698,58828.0,58821.0,0.209]
[1617402664507,2.12107698,58828.0,58821.0,0.159]
[1617402664718,0.70202,58827.0,58820.0,0.53539908]
[1617402664912,0.70202,58827.0,58820.0,0.467412]
[1617402665114,0.315,58827.0,58820.0,0.517412]
[1617402665309,0.315,58827.0,58820.0,0.127476]
[1617402665529,0.14,58826.0,58820.0,0.177476]
[1617402665728,0.14,58826.0,58820.0,0.127476]
[1617402666730,0.14,58826.0,58819.0,0.258995]
[1617402666929,0.365,58825.0,58819.0,0.254995]
[1617402667931,0.365,58825.0,58819.0,0.30645135]
[1617402668154,0.405,58824.0,58819.0,0.254995]
[1617402668555,0.1,58827.0,58819.0,0.254995]
[1617402668761,0.13977646,58828.0,58819.0,0.254995]
[1617402668960,2.50809698,58827.0,58814.0,0.00300781]
[1617402669161,2.50809698,58827.0,58808.0,0.0044]
[1617402669162,0.002,58825.0,58808.0,0.0044]
[1617402669360,0.002,58825.0,58809.0,0.975015]
[1617402669556,0.1,58823.0,58809.0,0.975015]
[1617402669758,0.48702,58823.0,58809.0,0.975015]
[1617402669997,0.002,58820.0,58809.0,1.31504]
[1617402670200,0.38702,58819.0,58808.0,0.0044]
[1617402670400,0.66202,58819.0,58809.0,0.975015]
[1617402670794,0.66202,58819.0,58808.0,0.979415]
[1617402671194,0.36477646,58819.0,58810.0,0.255041]
[1617402671396,0.08977646,58819.0,58810.0,0.255041]
[1617402672196,0.38702,58818.0,58810.0,0.255041]
[1617402672598,0.47679646,58818.0,58810.0,0.255041]
[1617402672799,0.47679646,58818.0,58808.0,0.0044]
[1617402672800,0.1,58817.0,58808.0,0.0044]
[1617402673000,0.002,58816.0,58805.0,0.0085]
[1617402673606,0.14177646,58816.0,58805.0,0.0085]
[1617402673804,0.925,58815.0,58805.0,0.0085]
[1617402674006,1.095,58814.0,58807.0,0.255051]
[1617402674406,0.15,58814.0,58807.0,1.230066]
[1617402674609,0.08977646,58814.0,58808.0,0.38702]
[1617402675007,0.12953332,58814.0,58807.0,0.255051]
[1617402675207,0.12953332,58814.0,58805.0,0.0085]
[1617402675407,0.17953332,58814.0,58805.0,0.983515]
[1617402675608,0.0029817,58807.0,58805.0,0.983515]
[1617402675806,0.00298173,58808.0,58806.0,0.38702]
[1617402676036,0.09275806,58807.0,58806.0,0.975015]
[1617402676233,0.09275806,58807.0,58806.0,1.030214]
[1617402676436,0.08977646,58808.0,58806.0,1.030214]
[1617402676637,0.08977646,58807.0,58806.0,0.975015]
[1617402676833,0.08977646,58807.0,58806.0,0.055199]
[1617402677034,0.08977646,58807.0,58806.0,0.310258]
[1617402678658,0.08977646,58807.0,58806.0,0.055199]
[1617402678860,0.40286674,58807.0,58805.0,0.0085]
[1617402679459,0.83,58806.0,58805.0,0.0085]
[1617402679860,0.91977646,58806.0,58805.0,0.0085]
[1617402680259,0.08977646,58806.0,58805.0,0.0085]
[1617402681482,0.29082872,58806.0,58805.0,0.0085]
[1617402681887,0.08977646,58806.0,58805.0,0.0085]
[1617402682281,0.94977646,58806.0,58805.0,0.0085]
[1617402683680,0.93977646,58806.0,58805.0,0.0085]
[1617402685143,1.33169482,58806.0,58805.0,0.0085]
[1617402685343,0.93977646,58806.0,58805.0,0.0085]
[1617402687155,0.93977646,58806.0,58805.0,0.983515]
[1617402687355,0.07977646,58806.0,58805.0,0.983515]
[1617402687557,0.07977646,58806.0,58805.0,1.68216348]
[1617402687755,0.07977646,58806.0,58805.0,1.75416348]
[1617402688153,0.00571314,58807.0,58805.0,1.442535]
[1617402688356,0.00571314,58807.0,58806.0,0.055214]
[1617402690164,0.00571314,58807.0,58806.0,1.030229]
[1617402690362,0.00571314,58807.0,58806.0,0.055214]
[1617402690566,0.15404314,58807.0,58806.0,0.055214]
[1617402690767,0.15404314,58807.0,58805.0,0.0085]
[1617402690969,0.60654314,58807.0,58805.0,0.0085]
[1617402691164,0.86,58806.0,58805.0,0.0085]
[1617402691365,0.858,58806.0,58805.0,0.0085]
[1617402693389,0.3624896,58807.0,58805.0,0.0085]
[1617402693587,0.0854896,58807.0,58805.0,0.0085]
[1617402695009,0.0804896,58807.0,58805.0,0.0085]
[1617402697661,0.0804896,58807.0,58805.0,0.00032403]
[1617402698257,0.0854896,58807.0,58805.0,0.00032403]
[1617402699057,0.0854896,58807.0,58805.0,0.01045342]
[1617402702921,0.0890296,58807.0,58805.0,0.01045342]
[1617402703322,0.0890296,58807.0,58806.0,0.86427772]
[1617402703528,0.0890296,58807.0,58806.0,1.56119342]
[1617402703726,0.0890296,58807.0,58806.0,1.73632281]
[1617402703922,0.0840296,58807.0,58806.0,1.73632281]
[1617402704126,0.00922154,58807.0,58806.0,1.73632281]
[1617402704323,0.00922154,58807.0,58806.0,1.42642711]
[1617402704524,0.00425314,58807.0,58806.0,1.42642711]
[1617402705124,0.00425314,58807.0,58806.0,0.56214939]
[1617402706125,0.00922116,58807.0,58806.0,0.56214939]
[1617402706726,0.00922116,58807.0,58806.0,0.39714939]
[1617402707128,0.00425314,58807.0,58806.0,0.39714939]
[1617402708140,0.00425314,58807.0,58806.0,0.62714939]
[1617402709140,0.00922394,58807.0,58806.0,0.62714939]
[1617402709544,0.00922394,58807.0,58806.0,0.39714939]
[1617402709943,0.01422394,58807.0,58806.0,0.39714939]
[1617402710377,0.00925314,58807.0,58806.0,0.39714939]
[1617402710977,0.01422012,58807.0,58806.0,0.39714939]
[1617402711779,0.00925314,58807.0,58806.0,0.39714939]
[1617402711979,0.00925314,58807.0,58806.0,0.55214939]
[1617402712987,0.00571314,58807.0,58806.0,0.55214939]
[1617402713191,0.00571314,58807.0,58806.0,0.39714939]
[1617402713792,0.01067935,58807.0,58806.0,0.39714939]
[1617402714392,0.74193289,58807.0,58806.0,0.39714939]
[1617402715261,0.89196668,58807.0,58806.0,0.39714939]
[1617402715461,0.89693246,58807.0,58806.0,0.01012939]
[1617402715856,0.89693246,58807.0,58806.0,0.00658939]
[1617402716659,0.89193246,58807.0,58806.0,0.00658939]
[1617402716867,0.88696668,58807.0,58806.0,0.00658939]
[1617402719163,0.96674314,58807.0,58806.0,0.00658939]
[1617402719763,1.27663884,58807.0,58806.0,0.00658939]
[1617402719962,0.96674314,58807.0,58806.0,0.00658939]
[1617402720163,0.88696668,58807.0,58806.0,0.00658939]
[1617402720962,0.88696668,58807.0,58806.0,0.00158939]
[1617402721164,0.89196668,58807.0,58806.0,0.00158939]
[1617402722966,0.89196668,58807.0,58805.0,0.00032403]
[1617402723206,0.36578259,58806.0,58805.0,0.00032403]
[1617402724012,0.36578259,58806.0,58796.0,0.40808115]
[1617402724210,0.00496223,58804.0,58800.0,0.015]
[1617402724609,0.18,58803.0,58800.0,0.015]
[1617402725007,0.21,58802.0,58800.0,0.015]
[1617402726830,0.2157136,58802.0,58800.0,0.015]
[1617402727827,0.14,58801.0,58800.0,0.015]
[1617402728227,0.0057136,58802.0,58800.0,0.015]
[1617402728441,0.0057136,58802.0,58800.0,0.87927772]
[1617402728647,0.0057136,58802.0,58800.0,0.169]
[1617402728844,0.0057136,58802.0,58801.0,0.38702]
[1617402729246,0.0057136,58802.0,58800.0,0.015]
[1617402730112,0.0057136,58802.0,58800.0,0.270052]
[1617402730316,0.0057136,58802.0,58801.0,0.38702]
[1617402730514,0.0057136,58802.0,58801.0,0.56202]
[1617402731717,0.0057136,58802.0,58801.0,0.38702]
[1617402735317,0.0057136,58802.0,58801.0,0.54502]
[1617402735722,0.0057136,58802.0,58801.0,1.60929772]
[1617402737925,0.7075568,58807.0,58802.0,3.88427772]
[1617402738127,0.00297743,58806.0,58805.0,0.055246]
[1617402738323,0.7075571,58807.0,58805.0,0.055246]
[1617402738525,0.7075571,58807.0,58806.0,0.641982]
[1617402739744,0.7075571,58807.0,58806.0,1.85725972]
[1617402739949,0.7075571,58807.0,58806.0,10.19452972]
[1617402740152,0.7075571,58807.0,58806.0,10.72075346]
[1617402740153,0.7045795,58807.0,58806.0,10.72075346]
[1617402740347,0.53461239,58807.0,58806.0,10.72075346]
[1617402740745,0.36464528,58807.0,58806.0,2.666532]
[1617402741243,0.36464528,58807.0,58806.0,1.300252]
[1617402741444,0.36464528,58807.0,58806.0,0.992982]
[1617402741673,0.36464528,58807.0,58806.0,1.85725972]
[1617402741874,0.36464528,58807.0,58806.0,3.74725972]
[1617402742075,0.36464528,58807.0,58806.0,4.14720346]
[1617402742279,0.3676253,58807.0,58806.0,2.882982]
[1617402742475,0.3676253,58807.0,58806.0,3.28292574]
[1617402742674,0.3676253,58807.0,58806.0,0.992982]
[1617402743274,0.3676253,58807.0,58806.0,1.39292574]
[1617402743476,0.3676253,58807.0,58806.0,0.992982]
[1617402744700,0.3676253,58807.0,58806.0,0.797982]
[1617402747353,0.3676253,58807.0,58806.0,0.641982]
[1617402748551,0.3676253,58807.0,58806.0,0.826982]
[1617402750158,0.36464528,58807.0,58806.0,0.826982]
[1617402754909,0.36464528,58807.0,58806.0,0.641982]
[1617402755505,0.36464528,58807.0,58806.0,0.798982]
[1617402755708,0.3656407,58807.0,58806.0,0.80057139]
[1617402755910,0.36464528,58807.0,58806.0,0.80057139]
[1617402756106,0.36464528,58807.0,58806.0,1.00557139]
[1617402756709,0.36464528,58807.0,58806.0,1.86984911]
[1617402756910,0.36464528,58807.0,58806.0,1.00557139]
[1617402757322,0.36464528,58807.0,58806.0,1.86984911]
[1617402757527,0.36464528,58807.0,58806.0,1.00557139]
[1617402757724,0.36464528,58807.0,58806.0,4.04557139]
[1617402758727,0.36464528,58807.0,58806.0,4.44551513]
[1617402758927,0.36464528,58807.0,58806.0,1.00557139]
[1617402759530,0.36464528,58807.0,58806.0,1.21553564]
[1617402759727,0.36464528,58807.0,58806.0,5.91557139]
[1617402759947,0.36464528,58807.0,58806.0,6.31551513]
[1617402760793,0.36464528,58807.0,58806.0,7.17979285]
[1617402760998,0.19468428,58807.0,58806.0,14.44054285]
[1617402761403,0.0009965,58815.0,58807.0,6.18222146]
[1617402761596,0.0009965,58815.0,58812.0,0.055236]
[1617402761800,0.00099656,58816.0,58815.0,0.386919]
[1617402761998,0.00141825,58816.0,58815.0,0.841109]
[1617402762196,0.00141825,58816.0,58815.0,1.23905274]
[1617402762399,0.00042169,58816.0,58815.0,0.841109]
[1617402762596,0.00042169,58816.0,58815.0,0.84269839]
[1617402762997,0.03927875,58827.0,58815.0,0.84269839]
[1617402763203,0.03927875,58827.0,58821.0,0.055224]
[1617402763204,0.17500103,58827.0,58821.0,0.055224]
[1617402763400,0.002,58825.0,58821.0,0.055224]
[1617402763597,0.002,58825.0,58821.0,0.05681339]
[1617402763798,0.05979441,58832.0,58821.0,0.05681339]
[1617402764001,0.002,58827.0,58821.0,0.05681339]
[1617402764201,0.1350294,58826.0,58821.0,0.00158939]
[1617402764601,0.1350419,58827.0,58821.0,0.00158939]
[1617402764799,0.13503758,58825.0,58821.0,0.00158939]
[1617402765002,0.13503289,58830.0,58821.0,0.25652139]
[1617402765207,0.13507842,58829.0,58821.0,0.25652139]
[1617402765409,0.13507842,58829.0,58823.0,0.0046]
[1617402765607,0.13572228,58829.0,58823.0,0.0046]
[1617402765809,0.13572228,58829.0,58823.0,0.00618939]
[1617402766006,0.13513617,58829.0,58823.0,0.00618939]
[1617402766211,0.13513617,58829.0,58826.0,0.254944]
[1617402766411,0.13513617,58829.0,58827.0,0.38702]
[1617402766610,0.05985774,58834.0,58828.0,0.055024]
[1617402766611,0.13516962,58832.0,58828.0,0.055024]
[1617402767010,0.36,58839.0,58827.0,0.00558939]
[1617402767011,0.13519307,58831.0,58827.0,0.00558939]
[1617402767212,0.05987215,58835.0,58828.0,0.00158939]
[1617402767408,0.13572228,58834.0,58828.0,0.00158939]
[1617402767609,0.13519591,58830.0,58828.0,0.00158939]
[1617402767826,0.13572228,58830.0,58828.0,0.00158939]
[1617402768026,0.05987176,58835.0,58828.0,0.25651739]
[1617402768027,0.13572228,58832.0,58828.0,0.25651739]
[1617402768226,0.13519566,58831.0,58828.0,0.25651739]
[1617402768432,0.13572228,58831.0,58828.0,0.25651739]
[1617402768826,0.13572228,58831.0,58829.0,0.38702]
[1617402769228,0.13572228,58831.0,58829.0,0.38860939]
[1617402770849,0.13572228,58834.0,58829.0,0.38860939]
[1617402771055,0.13572228,58834.0,58830.0,0.254928]
[1617402771452,0.13572228,58834.0,58830.0,0.25651739]
[1617402774679,0.38702,58833.0,58830.0,0.25651739]
[1617402774881,0.13572228,58832.0,58830.0,0.00158939]
[1617402775081,0.38702,58831.0,58830.0,0.00158939]
[1617402775347,0.67274228,58831.0,58830.0,0.00158939]
[1617402777347,0.71274228,58831.0,58830.0,0.00158939]
[1617402777544,0.84774228,58831.0,58830.0,0.00158939]
[1617402777945,0.65774228,58831.0,58830.0,0.00158939]
[1617402778146,0.75774228,58831.0,58830.0,0.00158939]
[1617402778544,0.65774228,58831.0,58830.0,0.00158939]
[1617402778743,0.52202,58831.0,58830.0,0.00158939]
[1617402780348,0.52202,58831.0,58830.0,0.12158939]
[1617402781350,0.02291861,58830.0,58824.0,0.25495]
[1617402781753,0.01992116,58827.0,58824.0,0.25495]
[1617402781952,0.01992116,58827.0,58825.0,0.38702]
[1617402782552,0.01992116,58827.0,58826.0,0.12]
[1617402782751,0.01992116,58827.0,58826.0,0.17504]
[1617402783572,0.01992577,58828.0,58826.0,0.12]
[1617402783774,0.15347724,58827.0,58824.0,0.37495]
[1617402783974,0.17340159,58827.0,58824.0,0.37495]
[1617402784376,0.01992435,58827.0,58824.0,0.12]
[1617402784979,0.01991848,58826.0,58824.0,0.12]
[1617402785177,0.01991803,58827.0,58820.0,0.12]
[1617402785575,0.01992705,58824.0,58820.0,0.12]
[1617402785775,0.01992705,58824.0,58821.0,0.38702]
[1617402785977,0.01992705,58824.0,58821.0,0.641981]
[1617402786625,0.01992834,58825.0,58821.0,0.641981]
[1617402787027,0.13534144,58827.0,58821.0,0.641981]
[1617402787827,0.13534144,58827.0,58821.0,0.631981]
[1617402789032,0.13534144,58827.0,58821.0,0.764981]
[1617402790498,0.13534144,58827.0,58821.0,0.631981]
[1617402791901,0.13534144,58827.0,58821.0,0.37702]
[1617402792297,0.13534144,58827.0,58820.0,0.254]
[1617402792498,0.135,58826.0,58820.0,0.254]
[1617402792695,0.135,58826.0,58811.0,0.31736698]
[1617402792899,0.13547863,58825.0,58819.0,0.133]
[1617402793298,0.13547863,58825.0,58820.0,0.254965]
[1617402793499,0.13547863,58825.0,58821.0,0.134]
[1617402793699,0.13547863,58825.0,58820.0,0.23204639]
[1617402794498,0.05985617,58831.0,58824.0,0.387038]
[1617402794705,0.13553,58825.0,58824.0,0.133]
[1617402794898,0.13553,58825.0,58824.0,0.640038]
[1617402795100,0.05985617,58831.0,58824.0,0.253]
[1617402795298,0.05985617,58831.0,58823.0,0.004]
[1617402795498,0.06185617,58831.0,58823.0,0.004]
[1617402795697,0.1355768,58830.0,58823.0,0.004]
[1617402795898,0.1355768,58830.0,58820.0,0.0046]
[1617402796098,0.1355768,58830.0,58826.0,0.254943]
[1617402796703,0.05988397,58832.0,58826.0,0.254943]
[1617402797308,0.05989188,58831.0,58826.0,0.254943]
[1617402797505,0.05989165,58832.0,58826.0,0.254943]
[1617402798506,0.05990799,58831.0,58826.0,0.254943]
[1617402801132,0.05990799,58831.0,58827.0,0.30516646]
[1617402801333,0.04990799,58831.0,58825.0,0.004]
[1617402801532,0.04990799,58831.0,58821.0,0.0046]
[1617402801729,0.04990799,58831.0,58825.0,0.387038]
[1617402801961,0.04990799,58831.0,58829.0,0.045017]
[1617402802160,0.04990799,58831.0,58825.0,0.86427772]
[1617402802161,0.04990799,58831.0,58827.0,0.387038]
[1617402802361,0.13557605,58833.0,58827.0,0.641953]
[1617402802562,0.1474,58834.0,58831.0,0.045001]
[1617402802760,0.1474,58834.0,58828.0,0.18]
[1617402803164,0.13570846,58833.0,58828.0,0.18]
[1617402804163,0.13570846,58833.0,58832.0,0.254915]
[1617402804363,0.13570846,58833.0,58832.0,0.641953]
[1617402804586,0.13570846,58833.0,58832.0,0.891953]
[1617402804784,0.13761381,58839.0,58832.0,0.891953]
[1617402804985,0.13761381,58839.0,58834.0,0.0046]
[1617402805188,0.13761384,58843.0,58834.0,0.0046]
[1617402805456,0.00300781,58847.0,58834.0,0.0046]
[1617402805457,0.155,58842.0,58838.0,0.254884]
[1617402805655,0.13761451,58841.0,58838.0,0.258884]
[1617402805865,0.13761451,58846.0,58838.0,0.258884]
[1617402806055,0.155,58845.0,58838.0,0.258884]
[1617402806455,0.13761392,58844.0,58838.0,0.258884]
[1617402806855,0.13761392,58844.0,58838.0,0.254884]
[1617402807657,0.03761392,58844.0,58838.0,0.254884]
[1617402807859,0.13400004,58843.0,58838.0,0.254884]
[1617402808256,0.13400031,58844.0,58838.0,0.254884]
[1617402808457,0.13375095,58842.0,58838.0,0.254884]
[1617402808656,0.26875104,58844.0,58838.0,0.254884]
[1617402808859,0.13375038,58841.0,58838.0,0.254884]
[1617402809261,0.002,58842.0,58830.0,0.339862]
[1617402809458,0.01992952,58837.0,58830.0,0.339862]
[1617402809659,0.01992952,58837.0,58831.0,0.69026476]
[1617402810059,0.01992188,58838.0,58833.0,0.044966]
[1617402810258,0.01992181,58839.0,58833.0,0.044966]
[1617402810460,0.01992181,58839.0,58830.0,0.339862]
[1617402810656,0.01992178,58838.0,58831.0,0.387038]
[1617402810857,0.01992156,58839.0,58831.0,0.387038]
[1617402811058,0.01992156,58839.0,58836.0,0.044962]
[1617402811260,0.01992167,58838.0,58837.0,0.386996]
[1617402811461,0.25839848,58836.0,58831.0,0.08906088]
[1617402811663,0.25839848,58836.0,58832.0,0.2]
[1617402811860,0.25839848,58836.0,58833.0,0.86427772]
[1617402812062,0.25839848,58836.0,58832.0,1.06427772]
[1617402812463,0.25839848,58836.0,58835.0,0.254901]
[1617402815287,0.25839848,58836.0,58835.0,1.11917872]
[1617402815487,0.25839848,58836.0,58835.0,2.2034511]
[1617402815690,0.25839848,58836.0,58835.0,2.60139484]
[1617402815884,0.25839848,58836.0,58835.0,2.43639484]
[1617402816083,0.25839848,58836.0,58835.0,2.63317338]
[1617402816284,0.25839848,58836.0,58835.0,2.72461474]
[1617402816486,0.25839848,58836.0,58835.0,1.036671]
[1617402816683,0.25839848,58836.0,58835.0,0.643901]
[1617402818107,0.25339848,58836.0,58835.0,0.643901]
[1617402820842,0.25339848,58836.0,58835.0,0.169]
[1617402821242,0.25339848,58836.0,58830.0,0.24028157]
[1617402826885,0.29871553,58835.0,58830.0,0.24028157]
[1617402827689,0.25339848,58836.0,58830.0,0.24028157]
[1617402827891,0.13592997,58835.0,58830.0,0.24028157]
[1617402828309,0.13592997,58835.0,58827.0,0.341864]
[1617402828709,0.28940721,58835.0,58827.0,0.341864]
[1617402828905,0.13587269,58834.0,58827.0,0.341864]
[1617402829309,0.13587269,58834.0,58830.0,0.004844]
[1617402829509,0.20113022,58833.0,58830.0,0.004844]
[1617402829713,0.42462379,58832.0,58830.0,0.004844]
[1617402830108,0.52315327,58831.0,58830.0,0.004844]
[1617402830307,0.68315327,58831.0,58830.0,0.004844]
[1617402830509,0.83315327,58831.0,58830.0,0.004844]
[1617402830933,0.44613727,58831.0,58830.0,0.004844]
[1617402831135,0.83315327,58831.0,58830.0,0.004844]
[1617402832734,0.89691327,58831.0,58830.0,0.004844]
[1617402833763,1.05039051,58831.0,58830.0,0.004844]
[1617402833968,1.09773427,58831.0,58830.0,0.004844]
[1617402834164,1.39691327,58831.0,58830.0,0.004844]
[1617402834366,1.00989727,58831.0,58830.0,0.004844]
[1617402836498,1.59733518,58831.0,58830.0,0.004844]
[1617402836695,1.55039051,58831.0,58830.0,0.004844]
[1617402836893,1.39691327,58831.0,58830.0,0.004844]
[1617402837096,1.55039051,58831.0,58830.0,0.004844]
[1617402837291,1.39691327,58831.0,58830.0,0.004844]
[1617402837693,1.55039051,58831.0,58830.0,0.004844]
[1617402838093,1.39691327,58831.0,58830.0,0.004844]
[1617402838295,1.28067269,58831.0,58830.0,0.004844]
[1617402838496,1.43414993,58831.0,58830.0,0.004844]
[1617402839114,1.41405324,58831.0,58830.0,0.004844]
[1617402839511,1.43394909,58831.0,58830.0,0.004844]
[1617402839910,1.41405324,58831.0,58830.0,0.004844]
[1617402840112,1.43395095,58831.0,58830.0,0.004844]
[1617402840711,1.28047371,58831.0,58830.0,0.004844]
[1617402841336,1.21671371,58831.0,58830.0,0.004844]
[1617402842338,1.196816,58831.0,58830.0,0.004844]
[1617402842538,0.8098,58831.0,58830.0,0.004844]
[1617402843741,1.196816,58831.0,58830.0,0.004844]
[1617402845759,1.047016,58831.0,58830.0,0.004844]
[1617402845960,1.147016,58831.0,58830.0,0.004844]
[1617402846164,1.35049324,58831.0,58830.0,0.004844]
[1617402846995,1.197016,58831.0,58830.0,0.004844]
[1617402847794,1.35049324,58831.0,58830.0,0.004844]
[1617402847992,1.197016,58831.0,58830.0,0.004844]
[1617402848392,1.35049324,58831.0,58830.0,0.004844]
[1617402848793,1.197016,58831.0,58830.0,0.004844]
[1617402849215,1.35049324,58831.0,58830.0,0.004844]
[1617402849815,1.197016,58831.0,58830.0,0.004844]
[1617402851293,1.35049324,58831.0,58830.0,0.004844]
[1617402851495,1.50320766,58831.0,58827.0,0.02584099]
[1617402851694,0.5,58829.0,58827.0,0.02584099]
[1617402851895,0.67673297,58828.0,58827.0,0.02584099]
[1617402852094,0.62325573,58828.0,58827.0,0.02584099]
[1617402852695,1.12325573,58828.0,58827.0,0.02584099]
[1617402853097,1.68823873,58828.0,58827.0,0.02584099]
[1617402853499,1.60734157,58828.0,58827.0,0.02584099]
[1617402853900,1.30122273,58828.0,58827.0,0.02584099]
[1617402854497,1.20122273,58828.0,58827.0,0.02584099]
[1617402855098,0.94623973,58828.0,58827.0,0.02584099]
[1617402855298,1.33325573,58828.0,58827.0,0.02584099]
[1617402855700,1.43325573,58828.0,58827.0,0.02584099]
[1617402855899,0.94623973,58828.0,58827.0,0.02584099]
[1617402856099,1.33325573,58828.0,58827.0,0.02584099]
[1617402856300,1.43325573,58828.0,58827.0,0.02584099]
[1617402856700,1.33325573,58828.0,58827.0,0.02584099]
[1617402856901,1.58823873,58828.0,58827.0,0.02584099]
[1617402858202,1.84171597,58828.0,58827.0,0.02584099]
[1617402858402,1.73823873,58828.0,58827.0,0.02584099]
[1617402858602,2.04427333,58828.0,58827.0,0.02584099]
[1617402858803,1.73823873,58828.0,58827.0,0.02584099]
[1617402859002,2.04427672,58828.0,58827.0,0.02584099]
[1617402859403,1.73823873,58828.0,58827.0,0.02584099]
[1617402859608,2.04433426,58828.0,58827.0,0.02584099]
[1617402859819,1.65731826,58828.0,58827.0,0.02584099]
[1617402860219,1.99433426,58828.0,58827.0,0.02584099]
[1617402860421,1.73823873,58828.0,58827.0,0.02584099]
[1617402860822,1.89171597,58828.0,58827.0,0.02584099]
[1617402861026,1.73823873,58828.0,58827.0,0.02584099]
[1617402861223,1.89171597,58828.0,58827.0,0.02584099]
[1617402861422,1.73823873,58828.0,58827.0,0.02584099]
[1617402861824,2.04459394,58828.0,58827.0,0.02584099]
[1617402863654,2.34131622,58828.0,58827.0,0.02584099]
[1617402863859,2.35907118,58828.0,58827.0,0.02584099]
[1617402864858,2.78459394,58828.0,58827.0,0.02584099]
[1617402865943,2.93807118,58828.0,58827.0,0.02584099]
[1617402866144,2.78459394,58828.0,58827.0,0.02584099]
[1617402869947,2.93807118,58828.0,58827.0,0.02584099]
[1617402870148,3.27354118,58828.0,58827.0,0.02584099]
[1617402870349,3.40926346,58828.0,58827.0,0.02584099]
[1617402870953,3.53952775,58828.0,58827.0,0.02584099]
[1617402871152,4.14469299,58828.0,58827.0,0.02584099]
[1617402871549,4.53661135,58828.0,58827.0,0.02584099]
[1617402871749,4.00897071,58828.0,58827.0,0.02584099]
[1617402871954,3.71897071,58828.0,58827.0,0.02584099]
[1617402872149,3.56549347,58828.0,58827.0,0.02584099]
[1617402872549,3.89469299,58828.0,58827.0,0.02584099]
[1617402872751,4.14469299,58828.0,58827.0,0.02584099]
[1617402873348,4.00897071,58828.0,58827.0,0.02584099]
[1617402873550,3.89469299,58828.0,58827.0,0.02584099]
[1617402873753,3.75897071,58828.0,58827.0,0.02584099]
[1617402874753,3.21032823,58828.0,58827.0,0.02584099]
[1617402874957,2.87485823,58828.0,58827.0,0.02584099]
[1617402875580,2.24784223,58828.0,58827.0,0.02584099]
[1617402875782,2.48485823,58828.0,58827.0,0.02584099]
[1617402875978,2.39459394,58828.0,58827.0,0.02584099]
[1617402876580,2.13961094,58828.0,58827.0,0.02584099]
[1617402876979,2.23961094,58828.0,58827.0,0.02584099]
[1617402877175,2.28961094,58828.0,58827.0,0.02584099]
[1617402877981,2.54459894,58828.0,58827.0,0.02584099]
[1617402880850,2.39459894,58828.0,58827.0,0.02584099]
[1617402881046,2.49459894,58828.0,58827.0,0.02584099]
[1617402881238,2.64807618,58828.0,58827.0,0.02584099]
[1617402881438,2.49459894,58828.0,58827.0,0.02584099]
[1617402882039,2.23961094,58828.0,58827.0,0.02584099]
[1617402882639,2.13961094,58828.0,58827.0,0.02584099]
[1617402883039,2.39308818,58828.0,58827.0,0.02584099]
[1617402883846,2.23961094,58828.0,58827.0,0.02584099]
[1617402884849,1.85259494,58828.0,58827.0,0.02584099]
[1617402885249,2.39308818,58828.0,58827.0,0.02584099]
[1617402886284,2.23961094,58828.0,58827.0,0.02584099]
[1617402886484,1.75259494,58828.0,58827.0,0.02584099]
[1617402886883,1.80302298,58828.0,58827.0,0.02584099]
[1617402887083,1.44623973,58828.0,58827.0,0.02584099]
[1617402887683,1.83325573,58828.0,58827.0,0.02584099]
[1617402888083,2.13998837,58828.0,58827.0,0.02584099]
[1617402889298,1.75297237,58828.0,58827.0,0.02584099]
[1617402889699,1.83325573,58828.0,58827.0,0.02584099]
[1617402889902,1.98673297,58828.0,58827.0,0.02584099]
[1617402890101,2.29366305,58828.0,58827.0,0.02584099]
[1617402893959,2.38392734,58828.0,58827.0,0.02584099]
[1617402894360,2.51964962,58828.0,58827.0,0.02584099]
[1617402894957,2.38392734,58828.0,58827.0,0.02584099]
[1617402895655,2.43392734,58828.0,58827.0,0.02584099]
[1617402896255,2.53392734,58828.0,58827.0,0.02584099]
[1617402896688,2.04509258,58828.0,58827.0,0.02584099]
[1617402896886,2.28509258,58828.0,58827.0,0.02584099]
[1617402897085,2.13161534,58828.0,58827.0,0.02584099]
[1617402897292,1.97561534,58828.0,58827.0,0.02584099]
[1617402897887,1.73561534,58828.0,58827.0,0.02584099]
[1617402900495,1.3804501,58828.0,58827.0,0.02584099]
[1617402900895,1.07352002,58828.0,58827.0,0.02584099]
[1617402901095,0.98325573,58828.0,58827.0,0.02584099]
[1617402901495,2.29010247,58828.0,58827.0,0.02584099]